bitfinex/quotes_ETHUSD_20220109
["timestamp","ask_amount","ask_price","bid_price","bid_amount"]
[1641749324162,2.68819326,3167.6,3167.3,0.00170527]
[1641749324362,2.68819326,3167.6,3167.1,0.00284212]
[1641749324564,2.68819326,3167.6,3167.2,0.78931]
[1641749325066,2.68819326,3167.6,3167.3,0.00170527]
[1641749325864,2.68819326,3167.6,3167.2,1.15696335]
[1641749326309,2.68819326,3167.6,3167.3,0.00170527]
[1641749328010,2.68819326,3167.6,3167.2,0.0022737]
[1641749329869,2.68819326,3167.6,3167.3,1.53589643]
[1641749330362,2.68819326,3167.6,3167.4,0.00113685]
[1641749330764,2.68819326,3167.6,3167.2,0.0022737]
[1641749331366,3.47759626,3167.6,3167.2,0.0022737]
[1641749331966,3.47759626,3167.6,3166.9,0.00397897]
[1641749332570,3.47759626,3167.6,3166.9,0.79335897]
[1641749332772,2.68819326,3167.5,3166.9,0.79335897]
[1641749332970,2.68819326,3167.5,3167.0,0.00341055]
[1641749333369,0.789436,3167.4,3167.0,0.00341055]
[1641749333612,2.68819326,3167.5,3166.8,0.79395739]
[1641749334012,2.68819326,3167.3,3166.9,0.00397897]
[1641749334712,2.68819326,3167.3,3166.4,1.57886]
[1641749334713,0.78956,3167.4,3166.7,0.00511582]
[1641749334911,1.40811852,3167.0,3166.5,0.00625266]
[1641749335816,2.00811852,3167.0,3166.2,0.00795793]
[1641749336013,0.07893,3166.9,3166.2,0.00795793]
[1641749336213,4.21873,3166.9,3166.0,0.00909478]
[1641749336512,0.7896989,3166.5,3165.8,0.01023163]
[1641749337574,7.3881417,3166.6,3165.8,0.79989163]
[1641749337779,6.5985,3166.6,3165.8,0.79989163]
[1641749337974,6.5985,3166.6,3166.1,0.78962]
[1641749338375,6.5985,3166.6,3166.2,0.00795793]
[1641749338777,7.388146,3166.6,3166.2,0.00795793]
[1641749339178,7.388146,3166.6,3165.8,0.01023163]
[1641749339378,6.5985,3166.6,3165.8,0.01023163]
[1641749339983,0.7897079,3166.4,3165.8,0.01023163]
[1641749340178,6.5985,3166.6,3165.9,0.78964]
[1641749340677,6.5985,3166.6,3166.0,0.00909478]
[1641749341112,0.7896777,3166.5,3166.0,0.00909478]
[1641749342714,7.3881401,3166.6,3166.0,0.00909478]
[1641749343115,6.5985,3166.6,3166.0,0.00909478]
[1641749343518,8.1779673,3166.6,3165.8,0.01023163]
[1641749343722,0.7897414,3166.2,3165.8,0.01023163]
[1641749344017,1.0,3166.5,3165.8,0.01023163]
[1641749344214,3.68881447,3166.5,3165.8,0.01023163]
[1641749344620,1.12068784,3166.2,3165.8,0.01023163]
[1641749344866,0.7898422,3166.1,3165.8,0.01023163]
[1641749345065,0.7898422,3166.1,3165.0,1.57963]
[1641749345066,14.75,3166.1,3165.7,6.11]
[1641749345265,0.00113685,3166.0,3165.7,6.11]
[1641749346867,0.7898827,3165.9,3165.7,6.11]
[1641749347972,0.00113685,3166.0,3165.7,6.11]
[1641749348166,0.00113685,3166.0,3165.1,2.35408548]
[1641749348519,0.43513685,3166.4,3165.2,0.00341054]
[1641749348714,1.58613273,3166.4,3165.5,1.16632421]
[1641749348913,0.79088605,3166.2,3165.5,1.16632421]
[1641749349114,0.00113685,3166.2,3165.7,6.11]
[1641749349515,0.00113685,3166.2,3165.8,0.00113685]
[1641749350513,0.00113685,3166.2,3165.3,0.00397896]
[1641749350715,1.5797265,3166.1,3165.3,0.00397896]
[1641749351023,2.34610464,3166.0,3165.0,0.00568423]
[1641749351316,2.34610464,3166.0,3164.7,0.0073895]
[1641749351317,0.01256674,3165.8,3164.7,0.0073895]
[1641749351515,1.24851929,3165.5,3164.7,0.0073895]
[1641749351715,0.01256674,3165.8,3164.0,0.01136847]
[1641749351716,0.7900462,3165.2,3164.0,0.01136847]
[1641749351916,4.39119,3165.1,3164.7,0.0073895]
[1641749352115,4.39119,3165.1,3164.0,1.07530996]
[1641749352376,4.3122,3165.1,3164.1,0.01080005]
[1641749352775,5.1022614,3165.1,3164.5,1.4032796]
[1641749352973,4.6122,3165.1,3164.1,0.01080005]
[1641749353179,1.0,3165.0,3164.6,0.00795793]
[1641749353382,4.23211149,3165.0,3164.1,0.01080005]
[1641749353673,4.23211149,3165.0,3164.0,0.01136847]
[1641749353674,0.07899,3164.9,3164.0,0.01136847]
[1641749353875,0.7902086,3164.6,3164.0,0.01136847]
[1641749354073,0.07899,3164.5,3164.0,0.01136847]
[1641749354274,3.02978577,3164.5,3164.0,0.01136847]
[1641749354674,0.07899,3164.7,3164.0,0.01136847]
[1641749354975,3.21110802,3164.7,3164.0,0.01136847]
[1641749355178,1.0,3164.6,3164.0,0.01136847]
[1641749355373,0.07899,3164.5,3164.0,0.01136847]
[1641749355774,1.44438619,3163.9,3163.4,6.90022]
[1641749356035,1.74438619,3163.9,3163.4,6.11]
[1641749356226,1.74438619,3163.9,3162.7,6.88]
[1641749356227,12.15,3163.7,3162.7,6.88]
[1641749356428,0.07903,3163.6,3162.7,6.88]
[1641749356628,1.07903,3163.6,3162.8,0.00397896]
[1641749356825,1.07903,3163.6,3163.3,1.10953016]
[1641749357027,0.07903,3163.6,3163.3,1.10953016]
[1641749357729,0.00170527,3163.8,3163.3,1.10953016]
[1641749358127,0.00113685,3163.7,3163.3,1.10953016]
[1641749358525,0.00170527,3163.8,3163.3,1.10953016]
[1641749358929,0.00113685,3163.7,3163.3,1.10953016]
[1641749359330,0.00170527,3163.8,3163.3,1.10953016]
[1641749359765,0.00113685,3163.7,3163.3,1.10953016]
[1641749360165,0.00170527,3163.8,3163.3,1.10953016]
[1641749360566,0.00113685,3163.7,3163.3,1.10953016]
[1641749361067,0.00170527,3163.8,3163.3,1.10953016]
[1641749361467,0.00113685,3163.7,3163.3,1.10953016]
[1641749361868,0.00170527,3163.8,3163.3,1.10953016]
[1641749362067,0.00170527,3163.8,3163.3,1.40953016]
[1641749362267,0.00113685,3163.7,3163.3,1.40953016]
[1641749362471,0.00113685,3163.7,3163.3,2.95460946]
[1641749362667,0.00170527,3163.8,3163.5,0.79019]
[1641749362872,0.00170527,3163.8,3163.6,0.455]
[1641749363069,1.58165283,3165.1,3163.7,14.2]
[1641749363274,6.8428,3165.1,3164.7,1.05800434]
[1641749363529,6.8428,3165.1,3163.8,1.0]
[1641749363718,6.8428,3165.1,3163.9,0.455]
[1641749363919,6.8428,3165.1,3164.4,2.36966]
[1641749364119,6.8428,3165.1,3164.6,1.09576425]
[1641749364518,6.8428,3165.1,3164.7,0.455]
[1641749364719,6.8428,3165.1,3164.8,3.74691412]
[1641749364919,6.8428,3165.1,3164.8,4.80191412]
[1641749365119,4.3467,3165.5,3164.9,2.57943]
[1641749365320,4.3467,3165.5,3165.0,2.35292811]
[1641749365624,0.0096632,3165.4,3165.2,1.51801002]
[1641749365821,0.0096632,3165.4,3165.2,1.97301002]
[1641749366018,0.00909478,3165.3,3165.2,2.57301002]
[1641749366519,0.00909478,3165.3,3165.2,3.57301002]
[1641749366919,0.00909478,3165.3,3165.2,4.36266002]
[1641749367119,4.30579478,3165.5,3165.2,4.36266002]
[1641749367366,4.30579478,3165.5,3165.2,6.59330519]
[1641749367964,4.30579478,3165.5,3165.2,2.76266002]
[1641749368362,4.30579478,3165.5,3165.2,3.06266002]
[1641749369364,6.9855,3165.8,3165.5,0.78968]
[1641749369765,0.00227369,3165.7,3165.5,0.78968]
[1641749370170,0.00170527,3165.6,3165.4,0.78968]
[1641749370569,0.00113684,3165.5,3165.4,0.78968]
[1641749371029,0.00113684,3165.5,3165.2,1.51801002]
[1641749373525,0.00113684,3165.5,3165.2,1.81801002]
[1641749375869,0.00113684,3165.5,3165.2,1.51801002]
[1641749377968,0.00113684,3165.5,3164.9,1.57952]
[1641749378168,0.00113684,3165.5,3164.6,3.15928]
[1641749378525,0.00113684,3165.5,3164.8,0.00284212]
[1641749379111,0.00113684,3165.5,3165.1,1.23205143]
[1641749379815,0.00113684,3165.5,3165.1,1.83205143]
[1641749380714,0.00113684,3165.5,3165.1,2.62181143]
[1641749380915,0.00113684,3165.5,3165.2,0.78976]
[1641749381316,0.00113684,3165.5,3165.1,2.62181143]
[1641749382369,0.00113684,3165.5,3165.1,2.02181143]
[1641749383271,0.00113684,3165.5,3165.1,2.81161143]
[1641749383870,0.00113684,3165.5,3165.1,2.02181143]
[1641749384670,0.00113684,3165.5,3165.1,2.81161143]
[1641749386323,0.00113684,3165.5,3165.1,2.02181143]
[1641749386916,0.00113684,3165.5,3165.1,2.81161143]
[1641749389017,0.00113684,3165.5,3165.1,1.23205143]
[1641749391065,0.00113684,3165.5,3165.1,2.02186143]
[1641749392165,0.00113684,3165.5,3165.1,2.32186143]
[1641749392464,0.00113684,3165.5,3165.3,0.78977]
[1641749395617,0.00113684,3165.5,3165.3,1.57951]
[1641749399567,6.73663684,3165.8,3165.3,1.57951]
[1641749400067,0.00113685,3165.7,3165.3,1.57951]
[1641749401223,0.00113685,3165.7,3165.4,0.78976]
[1641749401423,0.00113685,3165.7,3165.4,1.57952]
[1641749401725,0.00113685,3165.7,3165.6,1.32535928]
[1641749401926,1.18868351,3166.5,3165.7,13.3]
[1641749402126,1.18868351,3166.5,3165.9,1.32829368]
[1641749402324,1.18868351,3166.5,3166.1,0.78942]
[1641749402522,2.68917964,3166.5,3166.2,0.455]
[1641749402721,2.68917964,3166.5,3166.4,10.31526335]
[1641749403123,2.68917964,3166.5,3166.4,2.71526335]
[1641749403524,2.68917964,3166.5,3166.4,3.17026335]
[1641749403922,0.07896,3166.6,3166.4,5.42952756]
[1641749404125,0.07896,3166.6,3166.5,10.54241199]
[1641749404320,0.07896,3166.6,3166.5,5.04741199]
[1641749404530,2.43608351,3167.7,3166.5,5.04741199]
[1641749404531,0.00384674,3167.1,3166.5,4.25809019]
[1641749404773,0.00384674,3167.1,3166.8,0.78917]
[1641749404973,11.476,3167.6,3167.5,1.14279517]
[1641749405274,6.4558,3167.6,3167.5,1.14279517]
[1641749405473,6.4558,3167.6,3167.5,1.74279517]
[1641749405671,6.4558,3167.6,3167.5,4.14362888]
[1641749405871,4.03279146,3167.7,3167.5,4.14362888]
[1641749406074,3.98279146,3167.7,3167.5,7.33616976]
[1641749406273,3.98279146,3167.7,3167.6,2.86699945]
[1641749406674,4.8047,3168.2,3167.6,3.86699945]
[1641749406972,6.38481662,3168.2,3167.7,2.74565]
[1641749407176,6.38481662,3168.2,3167.8,2.40455339]
[1641749407177,4.8047,3168.2,3167.8,2.40455339]
[1641749407379,7.29868351,3168.5,3167.9,0.86782]
[1641749407675,6.11,3168.5,3168.0,2.50888463]
[1641749407874,6.11,3168.5,3168.1,0.07889]
[1641749408077,6.11,3168.5,3168.1,1.53389]
[1641749408274,0.01534743,3168.4,3168.2,2.40431205]
[1641749408531,0.01534743,3168.4,3168.2,2.70431205]
[1641749408724,0.01477901,3168.3,3168.2,1.0888534]
[1641749408923,0.01477901,3168.3,3168.2,4.21862635]
[1641749409124,0.01477901,3168.3,3168.2,4.51862635]
[1641749409324,0.35666906,3168.3,3168.2,4.51862635]
[1641749409525,0.69855911,3168.3,3168.2,4.51862635]
[1641749409728,0.69855911,3168.3,3168.2,8.76862635]
[1641749409926,0.69855911,3168.3,3168.2,4.51862635]
[1641749410127,0.59855911,3168.3,3168.2,3.72977295]
[1641749410324,0.59855911,3168.3,3168.2,1.38887]
[1641749410325,0.54855911,3168.3,3168.2,1.38887]
[1641749411331,0.54855911,3168.3,3168.1,0.07889]
[1641749411527,0.54855911,3168.3,3167.5,1.40083371]
[1641749411726,0.54855911,3168.3,3167.5,2.19003371]
[1641749411927,0.54855911,3168.3,3167.6,0.00397896]
[1641749412374,0.7893063,3168.2,3167.6,0.00397896]
[1641749412769,0.7893063,3168.2,3167.3,0.00568423]
[1641749412971,0.54855911,3168.3,3167.3,0.00568423]
[1641749413171,0.01253631,3168.0,3167.3,0.00568423]
[1641749413374,0.01253631,3168.0,3166.4,1.57878]
[1641749413375,1.51481857,3167.5,3166.9,0.00795793]
[1641749413573,2.80917504,3167.4,3166.5,0.01023162]
[1641749413774,8.01729504,3167.4,3166.5,0.01023162]
[1641749413971,8.01729504,3167.4,3165.9,0.01364216]
[1641749413972,1.0,3167.3,3165.9,0.01364216]
[1641749414171,3.59667144,3167.2,3165.9,0.01364216]
[1641749414371,1.5795067,3166.8,3165.6,0.01534743]
[1641749414572,3.58657487,3166.7,3165.7,0.01477901]
[1641749414770,0.54855911,3166.4,3165.5,0.01591586]
[1641749414974,4.6995,3166.3,3165.3,0.0170527]
[1641749415272,4.6995,3166.3,3164.8,0.46752272]
[1641749415273,11.35980134,3166.3,3165.1,1.57943]
[1641749415472,11.35980134,3166.3,3164.9,0.0193264]
[1641749415473,1.20243685,3166.1,3164.9,0.0193264]
[1641749415673,3.0173563,3166.0,3165.2,0.01762113]
[1641749415875,1.07896,3165.9,3164.9,0.0193264]
[1641749416120,1.07896,3165.9,3164.7,0.02046324]
[1641749416121,3.35987476,3165.8,3164.7,0.02046324]
[1641749416323,0.07897,3165.7,3164.7,0.02046324]
[1641749416518,0.790009,3165.5,3164.9,1.27106994]
[1641749416918,1.07897,3165.5,3165.0,0.01875797]
[1641749417219,0.07897,3165.7,3165.0,0.01875797]
[1641749417418,1.0,3165.9,3165.0,0.01875797]
[1641749417621,1.0,3166.1,3165.0,0.01875797]
[1641749417819,1.37897,3166.2,3165.0,0.01875797]
[1641749418020,1.3,3166.2,3165.0,1.59833797]
[1641749418221,1.3,3166.2,3166.1,1.09995835]
[1641749418422,4.72846,3166.3,3166.1,1.09995835]
[1641749418620,4.6495,3166.3,3166.1,1.11246367]
[1641749418822,4.6495,3166.3,3166.2,0.01193689]
[1641749420068,5.19805911,3166.3,3166.2,0.01193689]
[1641749420276,0.54855911,3166.3,3166.2,0.01193689]
[1641749420675,0.54855911,3166.3,3166.2,6.81693689]
[1641749421570,0.00384676,3166.9,3166.3,12.81428279]
[1641749421775,0.00384676,3166.9,3166.7,0.78918]
[1641749421973,0.00384676,3166.9,3166.8,14.155]
[1641749422175,0.00384676,3166.9,3166.8,14.16352635]
[1641749422380,4.7151,3167.7,3167.3,1.24117478]
[1641749422573,4.7151,3167.7,3167.4,1.43976769]
[1641749422774,4.7151,3167.7,3167.4,1.4448835]
[1641749422971,4.7151,3167.7,3167.5,0.00454739]
[1641749423626,4.7151,3167.7,3167.5,0.79366739]
[1641749423826,4.7151,3167.7,3167.5,1.09366739]
[1641749424025,4.7151,3167.7,3167.5,1.39366739]
[1641749425726,4.2601,3168.4,3167.6,2.74882267]
[1641749425927,4.6638,3168.3,3167.9,0.78895]
[1641749426125,4.6638,3168.3,3167.9,3.40981541]
[1641749426326,4.6638,3168.3,3168.0,0.00170527]
[1641749426926,4.6638,3168.3,3168.0,1.57959527]
[1641749427378,4.6638,3168.3,3168.1,0.00113685]
[1641749428383,4.6638,3168.3,3167.9,1.38895]
[1641749428581,4.6638,3168.3,3167.9,0.86786]
[1641749428782,4.6638,3168.3,3167.4,0.0789]
[1641749428982,4.6638,3168.3,3166.9,0.455]
[1641749428983,0.01254003,3168.0,3166.9,0.455]
[1641749429181,0.01254003,3168.0,3167.5,0.00341054]
[1641749429581,0.01254003,3168.0,3167.2,0.00511581]
[1641749429982,4.6638,3168.3,3167.2,0.00511581]
[1641749430183,4.6638,3168.3,3167.3,1.50287685]
[1641749430383,4.6638,3168.3,3167.2,0.00511581]
[1641749430586,4.6638,3168.3,3167.4,0.00397896]
[1641749430784,4.6638,3168.3,3167.2,0.00511581]
[1641749431039,0.7893824,3167.9,3167.1,0.00568423]
[1641749431226,0.7893824,3167.9,3166.8,0.0073895]
[1641749431424,2.68811121,3168.2,3166.9,0.78933]
[1641749431627,4.6638,3168.3,3166.9,2.15611577]
[1641749431827,4.6638,3168.3,3167.0,0.00625266]
[1641749432625,2.68819166,3168.2,3167.0,0.00625266]
[1641749432838,1.322444,3167.5,3167.0,0.00625266]
[1641749433233,1.322444,3167.5,3166.7,0.00795793]
[1641749433426,1.322444,3167.5,3166.5,0.00909477]
[1641749433927,1.5790157,3167.8,3166.5,1.37837542]
[1641749434128,0.01288075,3167.9,3166.5,1.37837542]
[1641749434129,0.80232145,3167.9,3166.5,1.97837542]
[1641749434327,0.80232145,3167.9,3166.6,0.00852635]
[1641749434778,0.01288075,3167.9,3166.6,0.00852635]
[1641749435181,2.68863839,3167.7,3166.6,0.00852635]
[1641749435676,2.68863839,3167.7,3166.4,1.08945]
[1641749435677,2.68863839,3167.7,3166.5,0.30909477]
[1641749436077,2.68863839,3167.7,3166.6,0.00852635]
[1641749436577,0.7894223,3167.8,3166.6,0.00852635]
[1641749436578,1.28420976,3167.6,3166.7,1.51392726]
[1641749436978,1.28420976,3167.6,3166.8,0.0073895]
[1641749438629,3.47821064,3167.5,3166.5,0.00909477]
[1641749438829,0.789499,3167.5,3166.5,0.00909477]
[1641749439926,0.789499,3167.5,3166.3,0.01023162]
[1641749440123,0.789499,3167.5,3166.0,0.01193689]
[1641749440324,0.789499,3167.5,3166.1,0.01136847]
[1641749440525,4.5564,3167.4,3166.0,0.01193689]
[1641749440727,4.5564,3167.4,3166.5,1.51739967]
[1641749440930,7.24528638,3167.4,3166.3,0.78947]
[1641749441224,7.24528638,3167.4,3166.4,0.0096632]
[1641749441826,4.5564,3167.4,3166.4,0.0096632]
[1641749442673,4.5564,3167.4,3166.7,1.16574367]
[1641749442971,4.5564,3167.4,3166.8,0.0073895]
[1641749443474,4.5564,3167.4,3166.4,0.0096632]
[1641749444073,0.7895504,3167.2,3166.4,0.0096632]
[1641749444273,1.16619864,3167.1,3166.4,0.0096632]
[1641749444475,1.46619864,3167.1,3166.2,0.01080004]
[1641749444674,0.07893,3167.0,3166.0,0.01193689]
[1641749444875,0.07893,3167.0,3165.6,0.01421058]
[1641749445075,1.8687,3167.0,3165.6,0.01421058]
[1641749445274,0.7897948,3166.4,3165.6,0.01421058]
[1641749445475,5.24380785,3167.0,3165.6,0.01421058]
[1641749445476,4.9112,3166.3,3165.6,0.01421058]
[1641749446319,0.7898279,3166.2,3165.3,0.01591585]
[1641749446518,4.9112,3166.3,3165.3,0.01591585]
[1641749447518,4.9112,3166.3,3165.4,0.7897]
[1641749447921,4.9112,3166.3,3165.5,0.01477901]
[1641749450373,4.9112,3166.3,3165.3,0.01591585]
[1641749451068,4.9112,3166.3,3165.3,0.80565585]
[1641749451273,4.9112,3166.3,3165.3,0.01591585]
[1641749451469,4.9112,3166.3,3165.4,0.01534743]
[1641749451670,4.9112,3166.3,3165.3,0.01591585]
[1641749453070,4.9112,3166.3,3165.3,0.80566585]
[1641749453372,4.9112,3166.3,3165.4,0.01534743]
[1641749456326,5.7009816,3166.3,3165.4,0.01534743]
[1641749456726,5.7009816,3166.3,3165.3,0.01591585]
[1641749456926,4.9112,3166.3,3165.3,0.80567585]
[1641749457127,4.9112,3166.3,3166.2,1.28235221]
[1641749457571,4.9112,3166.3,3166.2,1.29315225]
[1641749458373,4.9112,3166.3,3166.2,0.01080005]
[1641749458874,4.8112,3166.3,3166.2,0.01080005]
[1641749459078,4.8112,3166.3,3166.2,1.01080005]
[1641749460078,4.8112,3166.3,3166.2,0.01080004]
[1641749460477,4.8112,3166.3,3165.7,0.01364216]
[1641749460676,4.8112,3166.3,3165.5,0.01477901]
[1641749461123,1.49959969,3166.0,3165.5,0.01477901]
[1641749461321,4.8112,3166.3,3165.2,0.01648428]
[1641749461532,0.7898393,3166.0,3165.2,0.01648428]
[1641749463424,0.7898693,3165.9,3165.2,0.01648428]
[1641749463623,2.69526837,3166.2,3165.2,0.01648428]
[1641749464024,4.8112,3166.3,3165.8,1.27421731]
[1641749464229,4.8112,3166.3,3165.8,1.72921731]
[1641749464424,4.8112,3166.3,3165.9,0.01250531]
[1641749464624,4.8112,3166.3,3166.0,2.03396]
[1641749464876,4.8112,3166.3,3166.0,2.63396]
[1641749465076,4.8112,3166.3,3166.2,1.12770644]
[1641749465277,4.8112,3166.3,3166.2,1.58270644]
[1641749465477,4.8112,3166.3,3166.2,2.19350648]
[1641749469519,0.00380394,3166.9,3166.2,2.19350648]
[1641749469719,0.00380394,3166.9,3166.3,0.07895]
[1641749469916,0.00380394,3166.9,3166.8,11.03611048]
[1641749470116,0.00380394,3166.9,3166.8,2.055]
[1641749470317,5.8897,3167.0,3166.8,2.0623895]
[1641749470518,5.8897,3167.0,3166.9,9.02102962]
[1641749470717,5.8897,3167.0,3166.9,1.7328507]
[1641749470918,5.8897,3167.0,3166.9,2.7328507]
[1641749471317,5.8897,3167.0,3166.9,3.73045644]
[1641749471718,5.8897,3167.0,3166.9,2.7328507]
[1641749471917,5.8897,3167.0,3166.9,1.7328507]
[1641749472122,5.8897,3167.0,3166.9,2.7328507]
[1641749472373,5.8897,3167.0,3166.9,3.0328507]
[1641749473175,5.8897,3167.0,3166.9,4.35532966]
[1641749473877,5.8897,3167.0,3166.9,3.0328507]
[1641749475183,5.8897,3167.0,3166.9,4.07060125]
[1641749476419,5.8397,3167.0,3166.9,4.07060125]
[1641749478724,0.95,3167.0,3166.9,4.07060125]
[1641749485225,0.95,3167.0,3166.9,3.0328507]
[1641749489472,0.95,3167.0,3166.9,0.46182108]
[1641749489674,0.95,3167.0,3166.9,0.00682108]
[1641749490172,0.95,3167.0,3166.6,0.00852635]
[1641749490873,0.95,3167.0,3166.6,1.42656939]
[1641749491332,0.95,3167.0,3166.7,0.00795793]
[1641749491730,0.95,3167.0,3166.8,0.78941]
[1641749492230,0.95,3167.0,3166.9,0.00682108]
[1641749494034,0.95,3167.0,3166.9,0.46182108]
[1641749494534,0.95,3167.0,3166.9,1.46182108]
[1641749494771,0.95,3167.0,3166.9,0.46182108]
[1641749494974,0.95,3167.0,3166.9,1.46182108]
[1641749495578,0.95,3167.0,3166.9,3.69603571]
[1641749497976,0.95,3167.0,3166.9,1.46182108]
[1641749498624,0.95,3167.0,3166.9,3.75406765]
[1641749498823,0.95,3167.0,3166.9,9.00406765]
[1641749499025,0.95,3167.0,3166.9,3.75406765]
[1641749499225,0.95,3167.0,3166.9,1.46182108]
[1641749499423,0.95,3167.0,3166.9,1.54076108]
[1641749499622,0.95,3167.0,3166.9,3.75352573]
[1641749502674,0.95,3167.0,3166.9,1.54076108]
[1641749505176,0.95,3167.0,3166.9,1.46182108]
[1641749516021,0.95,3167.0,3166.9,1.54075108]
[1641749520287,0.95,3167.0,3166.9,0.46182108]
[1641749521522,0.95,3167.0,3166.9,1.06182108]
[1641749521920,0.95,3167.0,3166.9,2.06182108]
[1641749522120,0.95,3167.0,3166.9,2.055]
[1641749530124,0.95,3167.0,3166.9,0.455]
[1641749530326,0.95,3167.0,3166.5,0.07893]
[1641749530527,0.95,3167.0,3166.6,0.78949]
[1641749530727,0.95,3167.0,3166.6,0.79801635]
[1641749531528,2.68860069,3166.9,3166.6,0.79801635]
[1641749532571,5.16283773,3166.9,3166.6,2.32429652]
[1641749532774,2.68860069,3166.9,3166.6,2.32429652]
[1641749533571,2.68860069,3166.9,3166.6,2.32428652]
[1641749534872,2.68860069,3166.9,3166.7,1.08944]
[1641749535073,2.68860069,3166.9,3166.7,2.08944]
[1641749535272,2.68860069,3166.9,3166.8,0.0073895]
[1641749535475,0.95,3167.0,3166.8,0.0073895]
[1641749535674,0.95,3167.0,3166.8,1.8431545]
[1641749535879,0.95,3167.0,3166.9,3.59682694]
[1641749536128,0.95,3167.0,3166.9,3.90364802]
[1641749536326,0.95,3167.0,3166.9,4.74185892]
[1641749536526,0.95,3167.0,3166.9,2.55122108]
[1641749537126,0.95,3167.0,3166.9,4.73898778]
[1641749537530,0.95,3167.0,3166.9,2.55122108]
[1641749538628,0.95,3167.0,3166.9,4.72099977]
[1641749538827,9.18040394,3167.6,3167.0,13.6]
[1641749539028,9.18040394,3167.6,3167.3,1.57855]
[1641749539229,9.18040394,3167.6,3167.4,2.92844225]
[1641749539428,2.68798016,3167.5,3167.4,3.2910457]
[1641749539628,2.68798016,3167.5,3167.4,4.28706674]
[1641749539876,2.68798016,3167.5,3167.4,5.43969078]
[1641749540073,2.68798016,3167.5,3167.4,5.519965]
[1641749540272,4.8956,3167.6,3167.4,7.098265]
[1641749540473,4.8956,3167.6,3167.5,12.89284227]
[1641749540674,4.8956,3167.6,3167.5,3.90125281]
[1641749540873,7.92280394,3168.1,3167.5,3.90125281]
[1641749541073,4.05090394,3168.1,3167.7,0.78903]
[1641749541275,4.00090394,3168.1,3168.0,1.12143528]
[1641749541476,0.00380394,3168.1,3168.0,2.17643528]
[1641749541774,0.00380394,3168.1,3168.0,5.3479318]
[1641749542377,4.4642,3168.3,3168.1,2.13518013]
[1641749542676,4.4642,3168.3,3168.2,2.90689052]
[1641749542883,1.18868351,3168.9,3168.2,3.20689052]
[1641749543075,0.00113685,3168.3,3168.2,4.20689052]
[1641749543276,4.6804,3168.7,3168.3,11.35]
[1641749543533,4.6804,3168.7,3168.5,1.0887]
[1641749543724,4.92198351,3169.2,3168.6,2.3717639]
[1641749543923,1.18868351,3169.2,3168.6,3.1267639]
[1641749544123,0.00284212,3169.1,3168.6,3.1267639]
[1641749544323,0.00284212,3169.1,3168.7,1.54700104]
[1641749544524,0.00227369,3169.0,3168.8,2.70189531]
[1641749544727,0.00227369,3169.0,3168.9,2.21137721]
[1641749544928,4.3312,3169.3,3168.9,4.24373721]
[1641749545125,4.3312,3169.3,3169.0,1.68844709]
[1641749545325,4.3312,3169.3,3169.1,0.455]
[1641749545527,4.3312,3169.3,3169.1,2.94479515]
[1641749545728,4.03117047,3169.4,3169.1,2.94479515]
[1641749546027,7.70847047,3169.7,3169.3,1.4598537]
[1641749546227,7.70847047,3169.7,3169.3,3.0035237]
[1641749546426,0.00454739,3169.4,3169.3,2.2148537]
[1641749546630,0.00454739,3169.4,3169.3,2.5148537]
[1641749547786,0.00454739,3169.4,3169.2,1.57734]
[1641749548186,0.00397896,3169.3,3169.2,1.57734]
[1641749548386,0.00397896,3169.3,3169.2,2.03234]
[1641749548588,0.00397896,3169.3,3169.2,3.60968]
[1641749548786,0.00397896,3169.3,3169.2,2.03234]
[1641749549186,0.00397896,3169.3,3169.2,2.63234]
[1641749551224,0.00397896,3169.3,3169.2,4.83515356]
[1641749552023,0.00380394,3170.0,3169.3,6.3]
[1641749552224,0.00380394,3170.0,3169.7,0.7885]
[1641749552423,0.00341055,3169.9,3169.7,3.76382729]
[1641749552624,0.00341055,3169.9,3169.8,0.3]
[1641749552827,0.00380394,3170.0,3169.8,1.66582401]
[1641749553824,0.00380394,3170.0,3169.9,0.78854]
[1641749554224,0.00397897,3170.0,3169.9,1.08854]
[1641749554873,0.00397897,3170.0,3169.9,0.3]
[1641749555076,0.00397897,3170.0,3169.8,3.54290401]
[1641749555479,3.75341055,3169.9,3169.8,3.54290401]
[1641749555676,0.00341055,3169.9,3169.8,3.54290401]
[1641749555878,4.85341055,3169.9,3169.8,3.54290401]
[1641749556076,0.00341055,3169.9,3169.8,3.54290401]
[1641749556276,0.00341055,3169.9,3169.8,1.96582401]
[1641749558735,0.00341055,3169.9,3169.6,1.16465]
[1641749558936,0.00341055,3169.9,3169.4,0.07885]
[1641749559136,0.00284212,3169.8,3169.7,0.3]
[1641749559336,0.00284212,3169.8,3169.4,0.8676]
[1641749559536,0.00284212,3169.8,3169.4,1.4176]
[1641749559736,0.0022737,3169.7,3169.4,0.8176]
[1641749559937,0.0022737,3169.7,3169.5,1.3577502]
[1641749560137,0.00170527,3169.6,3169.5,1.3577502]
[1641749560335,0.00170527,3169.6,3169.4,0.8176]
[1641749560336,0.00170527,3169.6,3169.4,0.78875]
[1641749560539,0.00170527,3169.6,3169.2,1.57742]
[1641749560744,0.00113685,3169.5,3169.3,0.70989]
[1641749561139,0.00454739,3170.1,3169.2,1.0]
[1641749561339,0.00454739,3170.1,3169.2,1.6]
[1641749561739,0.00454739,3170.1,3169.3,0.631]
[1641749561939,2.68679644,3170.0,3169.3,0.631]
[1641749562139,2.68679644,3170.0,3169.4,0.3]
[1641749562378,2.68679644,3170.0,3169.5,0.78871]
[1641749562379,0.00341055,3169.9,3169.5,0.78871]
[1641749562574,0.00341055,3169.9,3169.5,1.08871]
[1641749562775,0.00284212,3169.8,3169.5,0.3]
[1641749563177,0.0022737,3169.7,3169.5,2.45468902]
[1641749563480,4.3049,3170.2,3169.6,4.53235821]
[1641749563676,4.3049,3170.2,3169.6,4.83235821]
[1641749563876,4.3049,3170.2,3170.1,1.12763116]
[1641749564076,0.2151323,3170.3,3170.1,1.42763116]
[1641749564277,0.00511582,3170.2,3170.1,1.42763116]
[1641749564475,0.00511582,3170.2,3170.1,2.51617116]
[1641749566224,0.00511582,3170.2,3170.1,1.91617116]
[1641749567227,0.17024812,3170.3,3170.1,1.91617116]
[1641749567827,0.17024812,3170.3,3170.1,3.21617116]
[1641749568029,0.17024812,3170.3,3170.1,3.51617116]
[1641749568228,0.17024812,3170.3,3170.1,0.65107671]
[1641749568830,0.17024812,3170.3,3170.2,1.13644862]
[1641749569432,0.17024812,3170.3,3170.2,2.47481102]